fUST/lending_fUST_20240416
["ID","MTS","AMOUNT","RATE_DAILY","PERIOD"]
[322690442,1713217851679,-1041.94,0.00032602,7]
[322690443,1713217851688,-500.0,0.00032602,7]
[322690444,1713217851697,-13032.94,0.00032602,7]
[322690445,1713217851706,-782.36,0.00032602,7]
[322690446,1713217851715,-500.0,0.00032602,7]
[322690447,1713217851724,-891.7,0.00032602,7]
[322690448,1713217851732,-536.06,0.00032602,7]
[322690449,1713217851741,-500.0,0.00032602,7]
[322690450,1713217851750,-500.0,0.00032602,7]
[322690451,1713217851759,-709.53,0.00032602,7]
[322690452,1713217851768,-1888.84,0.00032602,7]
[322690453,1713217851778,-1858.51,0.00032602,7]
[322690454,1713217851786,-500.0,0.00032602,7]
[322690455,1713217851795,-715.8,0.00032602,7]
[322690456,1713217851804,-749.6,0.00032602,7]
[322690457,1713217851812,-500.0,0.00032602,7]
[322690458,1713217851821,-500.0,0.00032602,7]
[322690459,1713217851830,-500.0,0.00032602,7]
[322690460,1713217851839,-429.00751268,0.00032602,7]
[322690461,1713217851848,-500.0,0.00032602,7]
[322690462,1713217851858,-500.0,0.00032602,7]
[322690463,1713217851868,-500.0,0.00032602,7]
[322690464,1713217851878,-500.0,0.00032602,7]
[322690465,1713217851887,-852.43,0.00032602,7]
[322690466,1713217851896,-500.0,0.00032602,7]
[322690467,1713217851905,-3341.63,0.00032602,7]
[322690468,1713217851914,-2111.01,0.00032602,7]
[322690469,1713217851923,-500.0,0.00032602,7]
[322690470,1713217851932,-1091.16,0.00032602,7]
[322690471,1713217851941,-1238.66,0.00032602,7]
[322690472,1713217851950,-500.0,0.00032602,7]
[322690473,1713217851960,-500.0,0.00032602,7]
[322690474,1713217851969,-500.0,0.00032602,7]
[322690475,1713217851978,-512.02,0.00032602,7]
[322690476,1713217851987,-621.69,0.00032602,7]
[322690477,1713217851996,-532.25,0.00032602,7]
[322690478,1713217852006,-1942.77,0.00032602,7]
[322690479,1713217852015,-500.0,0.00032602,7]
[322690480,1713217852025,-8409.79,0.00032602,7]
[322690481,1713217852034,-693.14,0.00032602,7]
[322690482,1713217852043,-1859.06,0.00032602,7]
[322690483,1713217852053,-960.29,0.00032602,7]
[322690484,1713217852063,-774.38,0.00032602,7]
[322690485,1713217852073,-500.0,0.00032602,7]
[322690486,1713217852082,-996.72,0.00032602,7]
[322690487,1713217852091,-532.15,0.00032602,7]
[322690488,1713217852100,-1440.78,0.00032602,7]
[322690489,1713217852110,-645.97,0.00032602,7]
[322690490,1713217852119,-1308.59,0.00032602,7]
[322690491,1713217852129,-2789.19,0.00032602,7]
[322690492,1713217852138,-2681.09,0.00032602,7]
[322690493,1713217852147,-962.04,0.00032602,7]
[322690494,1713217852157,-1210.30575349,0.00032861,3]
[322690495,1713217852166,-560.26024271,0.00032876,7]
[322690496,1713217852175,-615.76031145,0.00032876,7]
[322690497,1713217852185,-959.1,0.00032876,7]
[322690498,1713217852194,-500.0,0.00032876,7]
[322690499,1713217852204,-500.0,0.00032876,7]
[322690500,1713217852214,-576.34,0.00032876,7]
[322690501,1713217852223,-1381.05,0.00032876,7]
[322690502,1713217852232,-510.77,0.00032876,7]
[322690503,1713217852241,-500.0,0.00032876,7]
[322690504,1713217852250,-1122.09,0.00032876,7]
[322690505,1713217852259,-500.0,0.00032876,7]
[322690506,1713217852268,-643.62,0.00032876,7]
[322690507,1713217852277,-500.0,0.00032876,7]
[322690508,1713217852286,-500.0,0.00032876,7]
[322690509,1713217852296,-1286.94,0.00032876,7]
[322690511,1713217852305,-951.22,0.00032876,7]
[322690513,1713217852314,-500.0,0.00032876,7]
[322690515,1713217852324,-529.27,0.00032876,7]
[322690517,1713217852333,-169.28457683,0.00032876,7]
[322690519,1713217852342,-880.22,0.00032876,7]
[322690521,1713217852351,-500.61,0.00032876,7]
[322690523,1713217852361,-1402.37,0.00032876,7]
[322690525,1713217852370,-500.0,0.00032876,7]
[322690527,1713217852379,-500.0,0.00032876,7]
[322690529,1713217852388,-500.0,0.00032876,7]
[322690531,1713217852397,-500.0,0.00032876,7]
[322690533,1713217852406,-500.0,0.00032876,7]
[322690535,1713217852415,-500.0,0.00032876,7]
[322690537,1713217852424,-730.09,0.00032876,7]
[322690539,1713217852433,-734.85,0.00032876,7]
[322690541,1713217852442,-1101.24,0.00032876,7]
[322690543,1713217852451,-500.0,0.00032876,7]
[322690545,1713217852461,-500.0,0.00032876,7]
[322690547,1713217852470,-506.0,0.00032876,7]
[322690548,1713217852479,-500.0,0.00032876,7]
[322690550,1713217852489,-781.76,0.00032876,7]
[322690551,1713217852498,-687.89,0.00032876,7]
[322690552,1713217852507,-151.0,0.00032876,2]
[322690553,1713217852516,-500.0,0.00032876,7]
[322690554,1713217852525,-500.0,0.00032876,7]
[322690555,1713217852534,-1708.2,0.00032876,7]
[322690556,1713217852543,-289.04658859,0.00032876,7]
[322690557,1713217852552,-608.91,0.00032876,7]
[322690558,1713217852562,-1041.94,0.00032876,7]
[322690560,1713217852571,-500.0,0.00032876,7]
[322690561,1713217852583,-13032.94,0.00032876,7]
[322690562,1713217852591,-782.36,0.00032876,7]
[322690563,1713217852600,-500.0,0.00032876,7]
[322690564,1713217852612,-891.7,0.00032876,7]
[322690565,1713217852622,-536.06,0.00032876,7]
[322690566,1713217852631,-500.0,0.00032876,7]
[322690567,1713217852640,-500.0,0.00032876,7]
[322690568,1713217852649,-151.0,0.00032876,2]
[322690569,1713217852659,-709.53,0.00032876,7]
[322690570,1713217852669,-1888.84,0.00032876,7]
[322690571,1713217852679,-1858.51,0.00032876,7]
[322690572,1713217852689,-500.0,0.00032876,7]
[322690573,1713217852698,-715.8,0.00032876,7]
[322690574,1713217852707,-749.6,0.00032876,7]
[322690575,1713217852717,-500.0,0.00032876,7]
[322690576,1713217852727,-263.95825479,0.00032876,7]
[322690577,1713217852736,-151.0,0.00032876,2]
[322690578,1713217852746,-500.0,0.00032876,7]
[322690579,1713217852755,-500.0,0.00032876,7]
[322690580,1713217852764,-500.0,0.00032876,7]
[322690581,1713217852865,-500.0,0.00032876,7]
[322690582,1713217852874,-500.0,0.00032876,7]
[322690583,1713217852883,-852.43,0.00032876,7]
[322690584,1713217852892,-500.0,0.00032876,7]
[322690585,1713217852901,-3341.63,0.00032876,7]
[322690586,1713217852910,-2111.01,0.00032876,7]
[322690587,1713217852919,-151.0,0.00032876,2]
[322690588,1713217852928,-500.0,0.00032876,7]
[322690589,1713217852938,-1091.16,0.00032876,7]
[322690590,1713217852947,-1238.66,0.00032876,7]
[322690591,1713217852956,-151.0,0.00032876,2]
[322690592,1713217852965,-500.0,0.00032876,7]
[322690593,1713217852974,-500.0,0.00032876,7]
[322690594,1713217852983,-500.0,0.00032876,7]
[322690595,1713217852992,-512.02,0.00032876,7]
[322690596,1713217853001,-621.69,0.00032876,7]
[322690597,1713217853010,-151.0,0.00032876,2]
[322690598,1713217853019,-532.25,0.00032876,7]
[322690599,1713217853029,-1942.77,0.00032876,7]
[322690600,1713217853038,-500.0,0.00032876,7]
[322690601,1713217853047,-8409.79,0.00032876,7]
[322690602,1713217853056,-693.14,0.00032876,7]
[322690603,1713217853066,-1859.06,0.00032876,7]
[322690604,1713217853075,-960.29,0.00032876,7]
[322690605,1713217853084,-774.38,0.00032876,7]
[322690606,1713217853093,-814.281027,0.00032876,2]
[322690607,1713217853102,-500.0,0.00032876,7]
[322690608,1713217853113,-996.72,0.00032876,7]
[322690609,1713217853123,-814.281027,0.00032876,2]
[322690610,1713217853132,-532.15,0.00032876,7]
[322690611,1713217853141,-1440.78,0.00032876,7]
[322690612,1713217853151,-645.97,0.00032876,7]
[322690613,1713217853160,-1308.59,0.00032876,7]
[322690614,1713217853169,-2789.19,0.00032876,7]
[322690615,1713217853179,-2681.09,0.00032876,7]
[322690616,1713217853189,-962.04,0.00032876,7]
[322690617,1713217853198,-539.563969,0.00032877,2]
[322690618,1713217853207,-539.563969,0.00032877,2]
[322690619,1713217853216,-539.563969,0.00032877,2]
[322690620,1713217853225,-539.563969,0.00032877,2]
[322690621,1713217853235,-1401.82249658,0.00032974,2]
[322690622,1713217853244,-1200.0,0.00033,4]
[322690623,1713217853254,-217.0,0.00033,2]
[322690624,1713217853263,-217.0,0.00033,2]
[322690625,1713217853272,-10190.06,0.00033139,2]
[322690626,1713217853281,-10190.06,0.00033139,2]
[322690627,1713217853291,-10190.06,0.00033139,2]
[322690628,1713217853300,-10190.06,0.00033139,2]
[322690629,1713217853310,-10190.06,0.00033139,2]
[322690630,1713217853318,-10190.06,0.00033139,2]
[322690631,1713217853328,-10190.06,0.00033139,2]
[322690632,1713217853337,-10190.06,0.00033139,2]
[322690633,1713217853346,-10190.06,0.00033139,2]
[322690634,1713217853357,-10190.06,0.00033139,2]
[322690635,1713217853366,-539.563969,0.00033139,2]
[322690636,1713217853376,-539.563969,0.00033139,2]
[322690637,1713217853386,-959.1,0.0003315,7]
[322690638,1713217853395,-500.0,0.0003315,7]
[322690639,1713217853405,-500.0,0.0003315,7]
[322690640,1713217853414,-576.34,0.0003315,7]
[322690641,1713217853423,-1381.05,0.0003315,7]
[322690642,1713217853432,-510.77,0.0003315,7]
[322690643,1713217853441,-500.0,0.0003315,7]
[322690644,1713217853451,-1122.09,0.0003315,7]
[322690645,1713217853460,-500.0,0.0003315,7]
[322690646,1713217853468,-643.62,0.0003315,7]
[322690647,1713217853478,-500.0,0.0003315,7]
[322690648,1713217853487,-500.0,0.0003315,7]
[322690649,1713217853497,-1286.94,0.0003315,7]
[322690650,1713217853507,-951.22,0.0003315,7]
[322690651,1713217853517,-500.0,0.0003315,7]
[322690652,1713217853526,-529.27,0.0003315,7]
[322690653,1713217853535,-880.22,0.0003315,7]
[322690654,1713217853545,-500.61,0.0003315,7]
[322690655,1713217853554,-1402.37,0.0003315,7]
[322690656,1713217853566,-500.0,0.0003315,7]
[322690657,1713217853576,-500.0,0.0003315,7]
[322690658,1713217853585,-247.74767813,0.0003315,7]
[322690659,1713217853595,-500.0,0.0003315,7]
[322690660,1713217853607,-500.0,0.0003315,7]
[322690661,1713217853616,-500.0,0.0003315,7]
[322690662,1713217853625,-730.09,0.0003315,7]
[322690663,1713217853635,-734.85,0.0003315,7]
[322690664,1713217853644,-1101.24,0.0003315,7]
[322690665,1713217853653,-500.0,0.0003315,7]
[322690666,1713217853663,-500.0,0.0003315,7]
[322690667,1713217853672,-506.0,0.0003315,7]
[322690668,1713217853681,-500.0,0.0003315,7]
[322690669,1713217853691,-781.76,0.0003315,7]
[322690670,1713217853700,-687.89,0.0003315,7]
[322690671,1713217853711,-151.0,0.0003315,2]
[322690672,1713217853720,-500.0,0.0003315,7]
[322690673,1713217853729,-500.0,0.0003315,7]
[322690674,1713217853738,-1708.2,0.0003315,7]
[322690675,1713217853748,-608.91,0.0003315,7]
[322690676,1713217853757,-1041.94,0.0003315,7]
[322690677,1713217853767,-500.0,0.0003315,7]
[322690678,1713217853776,-13032.94,0.0003315,7]
[322690679,1713217853785,-782.36,0.0003315,7]
[322690680,1713217853794,-500.0,0.0003315,7]
[322690681,1713217853803,-891.7,0.0003315,7]
[322690682,1713217853812,-536.06,0.0003315,7]
[322690683,1713217853821,-500.0,0.0003315,7]
[322690684,1713217853830,-514.13,0.0003315,7]
[322690685,1713217853840,-151.0,0.0003315,2]
[322690686,1713217853849,-709.53,0.0003315,7]
[322690687,1713217853861,-1888.84,0.0003315,7]
[322690688,1713217853870,-1858.51,0.0003315,7]
[322690689,1713217853879,-500.0,0.0003315,7]
[322690690,1713217853888,-715.8,0.0003315,7]
[322690691,1713217853897,-749.6,0.0003315,7]
[322690692,1713217853905,-329.10033173,0.0003315,7]
[322690693,1713217853914,-151.0,0.0003315,2]
[322690694,1713217853923,-500.0,0.0003315,7]
[322690695,1713217853932,-500.0,0.0003315,7]
[322690696,1713217853941,-500.0,0.0003315,7]
[322690697,1713217853950,-500.0,0.0003315,7]
[322690698,1713217853959,-500.0,0.0003315,7]
[322690699,1713217853967,-852.43,0.0003315,7]
[322690700,1713217853977,-500.0,0.0003315,7]
[322690701,1713217853986,-3341.63,0.0003315,7]
[322690702,1713217853995,-2111.01,0.0003315,7]
[322690703,1713217854004,-500.0,0.0003315,7]
[322690704,1713217854013,-1091.16,0.0003315,7]
[322690705,1713217854021,-1238.66,0.0003315,7]
[322690706,1713217854031,-151.0,0.0003315,2]
[322690707,1713217854040,-224.0,0.0003315,7]
[322690708,1713217854049,-500.0,0.0003315,7]
[322690709,1713217854057,-500.0,0.0003315,7]
[322690710,1713217854067,-512.02,0.0003315,7]
[322690711,1713217854076,-621.69,0.0003315,7]
[322690712,1713217854085,-151.0,0.0003315,2]
[322690713,1713217854094,-532.25,0.0003315,7]
[322690714,1713217854102,-1942.77,0.0003315,7]
[322690715,1713217854115,-500.0,0.0003315,7]
[322690716,1713217854124,-8409.79,0.0003315,7]
[322690717,1713217854133,-693.14,0.0003315,7]
[322690718,1713217854142,-1859.06,0.0003315,7]
[322690719,1713217854151,-960.29,0.0003315,7]
[322690720,1713217854161,-774.38,0.0003315,7]
[322690721,1713217854170,-814.281027,0.0003315,2]
[322690722,1713217854179,-500.0,0.0003315,7]
[322690723,1713217854188,-996.72,0.0003315,7]
[322690724,1713217854197,-814.281027,0.0003315,2]
[322690725,1713217854206,-532.15,0.0003315,7]
[322690726,1713217854215,-1440.78,0.0003315,7]
[322690727,1713217854224,-645.97,0.0003315,7]
[322690728,1713217854233,-2789.19,0.0003315,7]
[322690729,1713217854242,-1308.59,0.0003315,7]
[322690730,1713217854250,-2681.09,0.0003315,7]
[322690731,1713217854259,-962.04,0.0003315,7]
[322690732,1713217854268,-187.721891,0.00033165,2]
[322690733,1713217854277,-451.69979,0.00033165,2]
[322690734,1713217854286,-383.755033,0.00033165,2]
[322690735,1713217854295,-154.0,0.00033226,2]
[322690736,1713217854304,-846.80324598,0.00033246,3]
[322690737,1713217854312,-106041.22129175,0.000333,2]
[322690738,1713217854322,-140711.56396,0.000333,2]
[322690739,1713217854331,-3000.0,0.000333,2]
[322690740,1713217854339,-1294.6341,0.000333,2]
[322690741,1713217854348,-3000.0,0.0003331,2]
[322690742,1713217854358,-257.9663183,0.0003332,2]
[322690743,1713217854367,-3000.0,0.0003332,2]
[322690744,1713217854376,-150.0,0.00033327,2]
[322690745,1713217854385,-3000.0,0.0003333,2]
[322690746,1713217854394,-707.27718334,0.00033337,2]
[322690747,1713217854403,-3000.0,0.0003334,2]
[322690748,1713217854412,-3000.0,0.0003335,2]
[322690749,1713217854421,-3000.0,0.0003336,2]
[322690750,1713217854430,-539.563969,0.0003336,2]
[322690751,1713217854439,-539.563969,0.0003336,2]
[322690752,1713217854448,-3000.0,0.0003337,2]
[322690753,1713217854457,-3000.0,0.0003338,2]
[322690754,1713217854467,-3000.0,0.0003339,2]
[322690755,1713217854475,-3000.0,0.000334,2]
[322690756,1713217854485,-3000.0,0.0003341,2]
[322690757,1713217854494,-3000.0,0.0003342,2]
[322690758,1713217854503,-959.1,0.00033424,7]
[322690759,1713217854512,-501.29855071,0.00033424,7]
[322690760,1713217854521,-500.0,0.00033424,7]
[322690761,1713217854530,-576.34,0.00033424,7]
[322690762,1713217854539,-1381.05,0.00033424,7]
[322690763,1713217854548,-510.77,0.00033424,7]
[322690764,1713217854556,-500.0,0.00033424,7]
[322690765,1713217854566,-1122.09,0.00033424,7]
[322690766,1713217854576,-500.0,0.00033424,7]
[322690767,1713217854586,-643.62,0.00033424,7]
[322690768,1713217854595,-500.0,0.00033424,7]
[322690769,1713217854605,-500.0,0.00033424,7]
[322690770,1713217854614,-1286.94,0.00033424,7]
[322690771,1713217854624,-951.22,0.00033424,7]
[322690772,1713217854633,-500.0,0.00033424,7]
[322690773,1713217854642,-529.27,0.00033424,7]
[322690774,1713217854652,-880.22,0.00033424,7]
[322690775,1713217854661,-500.61,0.00033424,7]
[322690776,1713217854671,-1402.37,0.00033424,7]
[322690777,1713217854680,-500.0,0.00033424,7]
[322690778,1713217854689,-500.0,0.00033424,7]
[322690779,1713217854698,-500.0,0.00033424,7]
[322690780,1713217854707,-500.0,0.00033424,7]
[322690781,1713217854716,-500.0,0.00033424,7]
[322690782,1713217854725,-730.09,0.00033424,7]
[322690783,1713217854734,-734.85,0.00033424,7]
[322690784,1713217854743,-1101.24,0.00033424,7]
[322690785,1713217854753,-500.0,0.00033424,7]
[322690786,1713217854761,-500.0,0.00033424,7]
[322690787,1713217854770,-506.0,0.00033424,7]
[322690788,1713217854779,-500.0,0.00033424,7]
[322690789,1713217854788,-781.76,0.00033424,7]
[322690790,1713217854797,-687.89,0.00033424,7]
[322690791,1713217854805,-500.0,0.00033424,7]
[322690792,1713217854814,-500.0,0.00033424,7]
[322690793,1713217854823,-1708.2,0.00033424,7]
[322690794,1713217854832,-608.91,0.00033424,7]
[322690795,1713217854841,-1041.94,0.00033424,7]
[322690796,1713217854850,-500.0,0.00033424,7]
[322690797,1713217854860,-13032.94,0.00033424,7]
[322690798,1713217854869,-782.36,0.00033424,7]
[322690799,1713217854877,-500.0,0.00033424,7]
[322690800,1713217854976,-891.7,0.00033424,7]
[322690801,1713217854985,-536.06,0.00033424,7]
[322690802,1713217854994,-500.0,0.00033424,7]
[322690803,1713217855003,-709.53,0.00033424,7]
[322690804,1713217855012,-1888.84,0.00033424,7]
[322690805,1713217855022,-1858.51,0.00033424,7]
[322690806,1713217855031,-500.0,0.00033424,7]
[322690807,1713217855039,-715.8,0.00033424,7]
[322690808,1713217855048,-749.6,0.00033424,7]
[322690809,1713217855057,-151.0,0.00033424,2]
[322690810,1713217855066,-500.0,0.00033424,7]
[322690811,1713217855075,-500.0,0.00033424,7]
[322690812,1713217855084,-500.0,0.00033424,7]
[322690813,1713217855093,-500.0,0.00033424,7]
[322690814,1713217855102,-500.0,0.00033424,7]
[322690815,1713217855113,-852.43,0.00033424,7]
[322690816,1713217855122,-500.0,0.00033424,7]
[322690817,1713217855130,-3341.63,0.00033424,7]
[322690818,1713217855140,-2111.01,0.00033424,7]
[322690819,1713217855149,-500.0,0.00033424,7]
[322690820,1713217855158,-1091.16,0.00033424,7]
[322690821,1713217855167,-1238.66,0.00033424,7]
[322690822,1713217855176,-151.0,0.00033424,2]
[322690823,1713217855185,-500.0,0.00033424,7]
[322690824,1713217855195,-500.0,0.00033424,7]
[322690825,1713217855204,-512.02,0.00033424,7]
[322690826,1713217855213,-621.69,0.00033424,7]
[322690827,1713217855222,-151.0,0.00033424,2]
[322690828,1713217855231,-532.25,0.00033424,7]
[322690829,1713217855240,-1942.77,0.00033424,7]
[322690830,1713217855249,-500.0,0.00033424,7]
[322690831,1713217855258,-8409.79,0.00033424,7]
[322690832,1713217855267,-693.14,0.00033424,7]
[322690833,1713217855275,-1859.06,0.00033424,7]
[322690834,1713217855284,-960.29,0.00033424,7]
[322690835,1713217855293,-774.38,0.00033424,7]
[322690836,1713217855302,-814.281027,0.00033424,2]
[322690837,1713217855311,-500.0,0.00033424,7]
[322690838,1713217855320,-996.72,0.00033424,7]
[322690839,1713217855329,-814.281027,0.00033424,2]
[322690840,1713217855337,-532.15,0.00033424,7]
[322690841,1713217855346,-1440.78,0.00033424,7]
[322690842,1713217855356,-645.97,0.00033424,7]
[322690843,1713217855365,-2789.19,0.00033424,7]
[322690844,1713217855373,-1308.59,0.00033424,7]
[322690845,1713217855382,-2681.09,0.00033424,7]
[322690846,1713217855391,-962.04,0.00033424,7]
[322690847,1713217855400,-3000.0,0.0003343,2]
[322690848,1713217855409,-3000.0,0.0003344,2]
[322690849,1713217855418,-3000.0,0.0003345,2]
[322690850,1713217855426,-3000.0,0.0003346,2]
[322690851,1713217855436,-3000.0,0.0003347,2]
[322690852,1713217855444,-3000.0,0.0003348,2]
[322690853,1713217855453,-160.569442,0.00033486,2]
[322690854,1713217855462,-3000.0,0.0003349,2]
[322690855,1713217855471,-3000.0,0.000335,2]
[322690856,1713217855480,-3000.0,0.0003351,2]
[322690857,1713217855489,-3000.0,0.0003352,2]
[322690858,1713217855498,-3000.0,0.0003353,2]
[322690859,1713217855508,-3000.0,0.0003354,2]
[322690860,1713217855516,-3000.0,0.0003355,2]
[322690861,1713217855526,-3000.0,0.0003356,2]
[322690862,1713217855534,-203.1366097,0.00033565,2]
[322690863,1713217855544,-3000.0,0.0003357,2]
[322690864,1713217855553,-230.539125,0.0003357,2]
[322690865,1713217855564,-306.0,0.00033572,2]
[322690866,1713217855574,-153.0,0.00033572,2]
[322690867,1713217855582,-3000.0,0.0003358,2]
[322690868,1713217855592,-3000.0,0.0003359,2]
[322690869,1713217855601,-3000.0,0.000336,2]
[322690870,1713217855611,-3000.0,0.0003361,2]
[322690871,1713217855620,-3000.0,0.0003362,2]
[322690872,1713217855629,-3000.0,0.0003363,2]
[322690873,1713217855638,-3000.0,0.0003364,2]
[322690874,1713217855648,-3000.0,0.0003365,2]
[322690875,1713217855658,-3000.0,0.0003366,2]
[322690876,1713217855666,-150.5,0.00033668,35]
[322690877,1713217855675,-3000.0,0.0003367,2]
[322690878,1713217855684,-150.5,0.00033678,35]
[322690879,1713217855693,-3000.0,0.0003368,2]
[322690880,1713217855702,-150.5,0.00033688,35]
[322690881,1713217855711,-150.5,0.00033688,35]
[322690882,1713217855720,-3000.0,0.0003369,2]
[322690883,1713217855729,-959.1,0.00033698,7]
[322690884,1713217855738,-500.0,0.00033698,7]
[322690885,1713217855747,-576.34,0.00033698,7]
[322690886,1713217855756,-1381.05,0.00033698,7]
[322690887,1713217855765,-510.77,0.00033698,7]
[322690888,1713217855774,-500.0,0.00033698,7]
[322690889,1713217855783,-1122.09,0.00033698,7]
[322690890,1713217855792,-500.0,0.00033698,7]
[322690891,1713217855801,-643.62,0.00033698,7]
[322690892,1713217855810,-500.0,0.00033698,7]
[322690893,1713217855818,-500.0,0.00033698,7]
[322690894,1713217855827,-1286.94,0.00033698,7]
[322690895,1713217855836,-951.22,0.00033698,7]
[322690896,1713217855844,-188.25522296,0.00033698,7]
[322690897,1713217855853,-529.27,0.00033698,7]
[322690898,1713217855863,-880.22,0.00033698,7]
[322690899,1713217855872,-500.61,0.00033698,7]
[322690900,1713217855881,-1402.37,0.00033698,7]
[322690901,1713217855891,-500.0,0.00033698,7]
[322690902,1713217855901,-539.563969,0.00033698,2]
[322690903,1713217855910,-539.563969,0.00033698,2]
[322690904,1713217855919,-500.0,0.00033698,7]
[322690905,1713217855928,-500.0,0.00033698,7]
[322690906,1713217855937,-500.0,0.00033698,7]
[322690907,1713217855946,-173.64923297,0.00033698,7]
[322690908,1713217855955,-730.09,0.00033698,7]
[322690909,1713217855964,-734.85,0.00033698,7]
[322690910,1713217855973,-1101.24,0.00033698,7]
[322690911,1713217855981,-500.0,0.00033698,7]
[322690912,1713217855990,-500.0,0.00033698,7]
[322690913,1713217855999,-506.0,0.00033698,7]
[322690914,1713217856008,-500.0,0.00033698,7]
[322690915,1713217856017,-781.76,0.00033698,7]
[322690916,1713217856026,-687.89,0.00033698,7]
[322690917,1713217856035,-500.0,0.00033698,7]
[322690918,1713217856044,-500.0,0.00033698,7]
[322690919,1713217856053,-1708.2,0.00033698,7]
[322690920,1713217856063,-608.91,0.00033698,7]
[322690921,1713217856072,-1041.94,0.00033698,7]
[322690922,1713217856081,-247.03963294,0.00033698,7]
[322690923,1713217856090,-13032.94,0.00033698,7]
[322690924,1713217856100,-782.36,0.00033698,7]
[322690925,1713217856110,-500.0,0.00033698,7]
[322690926,1713217856119,-891.7,0.00033698,7]
[322690927,1713217856128,-536.06,0.00033698,7]
[322690928,1713217856137,-500.0,0.00033698,7]
[322690929,1713217856146,-709.53,0.00033698,7]
[322690930,1713217856155,-1888.84,0.00033698,7]
[322690931,1713217856164,-1858.51,0.00033698,7]
[322690932,1713217856173,-500.0,0.00033698,7]
[322690933,1713217856181,-715.8,0.00033698,7]
[322690934,1713217856190,-749.6,0.00033698,7]
[322690935,1713217856199,-500.0,0.00033698,7]
[322690936,1713217856208,-500.0,0.00033698,7]
[322690937,1713217856217,-565.2,0.00033698,7]
[322690938,1713217856226,-500.0,0.00033698,7]
[322690939,1713217856235,-500.0,0.00033698,7]
[322690940,1713217856244,-852.43,0.00033698,7]
[322690941,1713217856253,-500.0,0.00033698,7]
[322690942,1713217856262,-3341.63,0.00033698,7]
[322690943,1713217856271,-2111.01,0.00033698,7]
[322690944,1713217856280,-500.0,0.00033698,7]
[322690945,1713217856289,-1091.16,0.00033698,7]
[322690946,1713217856298,-1238.66,0.00033698,7]
[322690947,1713217856307,-500.0,0.00033698,7]
[322690948,1713217856316,-500.0,0.00033698,7]
[322690949,1713217856324,-512.02,0.00033698,7]
[322690950,1713217856333,-621.69,0.00033698,7]
[322690951,1713217856342,-532.25,0.00033698,7]
[322690952,1713217856351,-1942.77,0.00033698,7]
[322690953,1713217856361,-500.0,0.00033698,7]
[322690954,1713217856370,-8409.79,0.00033698,7]
[322690955,1713217856379,-693.14,0.00033698,7]
[322690956,1713217856388,-1859.06,0.00033698,7]
[322690957,1713217856398,-960.29,0.00033698,7]
[322690958,1713217856408,-774.38,0.00033698,7]
[322690959,1713217856417,-500.0,0.00033698,7]
[322690960,1713217856427,-996.72,0.00033698,7]
[322690961,1713217856436,-532.15,0.00033698,7]
[322690962,1713217856446,-1440.78,0.00033698,7]